fUSD/lending_fUSD_20251024
["ID","MTS","AMOUNT","RATE_DAILY","PERIOD"]
[392240828,1761275445967,-779.62,0.00041095,30]
[392240829,1761275445976,-500.0,0.00041095,30]
[392240830,1761275445985,-500.0,0.00041095,30]
[392240831,1761275445995,-500.0,0.00041095,30]
[392240832,1761275446005,-500.0,0.00041095,30]
[392240833,1761275446015,-500.0,0.00041095,30]
[392240834,1761275446024,-636.74737097,0.00041095,30]
[392240835,1761275446033,-500.0,0.00041095,30]
[392240836,1761275446042,-503.69,0.00041095,30]
[392240837,1761275446052,-500.0,0.00041095,30]
[392240838,1761275446061,-661.39,0.00041095,30]
[392240839,1761275446070,-501.7450329,0.00041095,30]
[392240840,1761275446080,-500.0,0.00041095,30]
[392240841,1761275446089,-781.85,0.00041095,30]
[392240842,1761275446099,-500.0,0.00041095,30]
[392240843,1761275446109,-500.0,0.00041095,30]
[392240844,1761275446118,-309.30203261,0.00041095,30]
[392240845,1761275446127,-500.0,0.00041095,30]
[392240846,1761275446137,-500.0,0.00041095,30]
[392240847,1761275446146,-500.0,0.00041095,30]
[392240848,1761275446156,-500.0,0.00041095,30]
[392240849,1761275446165,-500.0,0.00041095,30]
[392240850,1761275446174,-500.0,0.00041095,30]
[392240851,1761275446183,-512.21,0.00041095,30]
[392240852,1761275446193,-500.0,0.00041095,30]
[392240853,1761275446202,-500.0,0.00041095,30]
[392240854,1761275446211,-500.0,0.00041095,30]
[392240855,1761275446221,-500.0,0.00041095,30]
[392240856,1761275446232,-500.0,0.00041095,30]
[392240857,1761275446242,-500.0,0.00041095,30]
[392240858,1761275446252,-500.0,0.00041095,30]
[392240859,1761275446262,-500.0,0.00041095,30]
[392240860,1761275446271,-500.0,0.00041095,30]
[392240861,1761275446281,-500.0,0.00041095,30]
[392240862,1761275446291,-500.0,0.00041095,30]
[392240863,1761275446300,-500.0,0.00041095,30]
[392240865,1761275446423,-745.44,0.00041095,30]
[392240866,1761275446433,-635.81,0.00041095,30]
[392240867,1761275446443,-680.43,0.00041095,30]
[392240868,1761275446452,-772.19,0.00041095,30]
[392240869,1761275446461,-500.0,0.00041095,30]
[392240870,1761275446472,-500.0,0.00041095,30]
[392240871,1761275446481,-645.07,0.00041095,30]
[392240872,1761275446491,-909.53,0.00041095,30]
[392240873,1761275446502,-500.0,0.00041095,30]
[392240874,1761275446512,-500.0,0.00041095,30]
[392240875,1761275446521,-500.80072705,0.00041095,30]
[392240876,1761275446531,-500.0,0.00041095,30]
[392240877,1761275446540,-500.0,0.00041095,30]
[392240878,1761275446550,-500.0,0.00041095,30]
[392240879,1761275446561,-500.0,0.00041095,30]
[392240880,1761275446571,-500.0,0.00041095,30]
[392240881,1761275446580,-500.0,0.00041095,30]
[392240882,1761275446590,-407.49669171,0.00041095,30]
[392240883,1761275446600,-500.0,0.00041095,30]
[392240884,1761275446609,-150.99,0.00041096,2]
[392240885,1761275446619,-4428.24,0.00041096,2]
[392240886,1761275446628,-999.99,0.00041096,2]
[392240887,1761275446638,-200.0,0.00041096,20]
[392240888,1761275446648,-242.0,0.000411,120]
[392240889,1761275446658,-14504.83346785,0.000412,120]
[392240890,1761275446667,-476.23156132,0.000412,120]
[392240891,1761275446676,-2919.50041689,0.00041229,15]
[392240892,1761275446687,-500.0,0.00041358,30]
[392240893,1761275446697,-500.0,0.00041358,30]
[392240894,1761275446706,-500.0,0.00041358,30]
[392240895,1761275446716,-500.0,0.00041358,30]
[392240896,1761275446726,-500.0,0.00041358,30]
[392240897,1761275446735,-500.0,0.00041358,30]
[392240898,1761275446744,-500.0,0.00041358,30]
[392240899,1761275446754,-500.0,0.00041358,30]
[392240900,1761275446768,-500.0,0.00041358,30]
[392240901,1761275446777,-500.0,0.00041358,30]
[392240902,1761275446787,-500.0,0.00041358,30]
[392240903,1761275446797,-500.0,0.00041358,30]
[392240904,1761275446807,-500.0,0.00041358,30]
[392240905,1761275446817,-500.0,0.00041358,30]
[392240906,1761275446827,-500.0,0.00041358,30]
[392240907,1761275446836,-500.0,0.00041358,30]
[392240908,1761275446846,-500.0,0.00041358,30]
[392240909,1761275446856,-500.0,0.00041358,30]
[392240910,1761275446865,-500.0,0.00041358,30]
[392240911,1761275446878,-500.0,0.00041358,30]
[392240912,1761275446887,-500.0,0.00041358,30]
[392240913,1761275446897,-500.0,0.00041358,30]
[392240914,1761275446906,-500.0,0.00041358,30]
[392240915,1761275446916,-500.0,0.00041358,30]
[392240916,1761275446925,-500.0,0.00041358,30]
[392240917,1761275446934,-500.0,0.00041358,30]
[392240918,1761275446945,-500.0,0.00041358,30]
[392240919,1761275446954,-500.0,0.00041358,30]
[392240920,1761275446963,-500.0,0.00041358,30]
[392240921,1761275446973,-500.0,0.00041358,30]
[392240922,1761275446983,-500.0,0.00041358,30]
[392240923,1761275446993,-500.0,0.00041358,30]
[392240924,1761275447003,-500.0,0.00041358,30]
[392240925,1761275447013,-500.0,0.00041358,30]
[392240926,1761275447023,-406.81302773,0.00041358,30]
[392240927,1761275447034,-500.0,0.00041358,30]
[392240928,1761275447045,-500.0,0.00041358,30]
[392240929,1761275447055,-500.0,0.00041358,30]
[392240930,1761275447065,-500.0,0.00041358,30]
[392240931,1761275447075,-500.0,0.00041358,7]
[392240932,1761275447085,-500.0,0.00041368,7]
[392240933,1761275447095,-500.0,0.00041369,30]
[392240934,1761275447105,-500.0,0.00041369,30]
[392240935,1761275447115,-500.0,0.00041369,30]
[392240936,1761275447124,-500.0,0.00041369,30]
[392240937,1761275447134,-500.0,0.00041369,30]
[392240938,1761275447143,-500.0,0.00041369,30]
[392240939,1761275447152,-218.14192356,0.00041369,30]
[392240940,1761275447162,-500.0,0.00041369,30]
[392240941,1761275447172,-406.83212135,0.00041369,30]
[392240942,1761275447181,-500.0,0.00041369,30]
[392240943,1761275447191,-500.0,0.00041369,30]
[392240944,1761275447201,-500.0,0.00041369,30]
[392240945,1761275447211,-215.89311446,0.00041369,30]
[392240946,1761275447220,-500.0,0.00041369,30]
[392240947,1761275447229,-500.0,0.00041369,30]
[392240948,1761275447238,-420.77122376,0.00041369,30]
[392240949,1761275447249,-500.0,0.00041369,30]
[392240950,1761275447258,-500.0,0.00041369,30]
[392240951,1761275447267,-500.0,0.00041369,30]
[392240952,1761275447276,-581.53,0.00041369,30]
[392240953,1761275447286,-500.0,0.00041369,30]
[392240954,1761275447295,-500.0,0.00041369,30]
[392240955,1761275447305,-500.0,0.00041369,30]
[392240956,1761275447315,-500.0,0.00041369,30]
[392240957,1761275447324,-500.0,0.00041369,30]
[392240959,1761275447334,-500.0,0.00041369,30]
[392240961,1761275447343,-500.0,0.00041369,30]
[392240963,1761275447352,-515.44,0.00041369,30]
[392240964,1761275447362,-500.0,0.00041369,30]
[392240965,1761275447371,-500.0,0.00041369,30]
[392240966,1761275447380,-571.71,0.00041369,30]
[392240967,1761275447389,-500.0,0.00041369,30]
[392240968,1761275447399,-880.4,0.00041369,30]
[392240969,1761275447408,-500.0,0.00041369,30]
[392240970,1761275447419,-846.54,0.00041369,30]
[392240971,1761275447430,-166.61369008,0.00041369,30]
[392240972,1761275447440,-244.10781521,0.00041369,30]
[392240973,1761275447450,-500.0,0.00041369,30]
[392240974,1761275447460,-507.21711449,0.00041369,30]
[392240975,1761275447469,-514.88023081,0.00041369,30]
[392240976,1761275447478,-922.51,0.00041369,30]
[392240977,1761275447488,-867.78,0.00041369,30]
[392240978,1761275447497,-791.44,0.00041369,30]
[392240979,1761275447506,-419.21228317,0.00041369,30]
[392240980,1761275447516,-500.0,0.00041369,30]
[392240981,1761275447526,-500.0,0.00041369,30]
[392240982,1761275447536,-650.4,0.00041369,30]
[392240983,1761275447546,-500.0,0.00041369,30]
[392240984,1761275447557,-869.12,0.00041369,30]
[392240985,1761275447567,-509.4,0.00041369,30]
[392240986,1761275447579,-500.0,0.00041369,30]
[392240987,1761275447589,-454.54987985,0.00041369,30]
[392240988,1761275449256,-380.061,0.00040011,2]
[392240989,1761275449266,-500.0,0.00041095,30]
[392240990,1761275449276,-20.26925413,0.00041369,30]
[392240991,1761275449287,-790.07,0.00041369,30]
[392240992,1761275449296,-518.74,0.00041369,30]
[392240993,1761275449306,-500.0,0.00041369,30]
[392240994,1761275449318,-500.0,0.00041369,30]
[392240995,1761275449328,-1124.01,0.00041369,30]
[392240996,1761275449337,-500.0,0.00041369,30]
[392240997,1761275449346,-500.0,0.00041369,30]
[392240998,1761275449356,-500.0,0.00041369,30]
[392240999,1761275449365,-513.93379254,0.00041369,30]
[392241000,1761275449375,-500.0,0.00041369,30]
[392241001,1761275449384,-929.43920464,0.00041369,30]
[392241002,1761275449399,-190.64079536,0.00041369,30]
[392241003,1761275449411,-438.09165196,0.00041369,30]
[392241004,1761275449429,-61.90834804,0.00041369,30]
[392241005,1761275449442,-500.0,0.00041369,30]
[392241006,1761275449452,-355.63676667,0.00041369,30]
[392241007,1761275449467,-145.77267538,0.00041369,30]
[392241008,1761275449477,-500.0,0.00041369,30]
[392241009,1761275449486,-865.45,0.00041369,30]
[392241010,1761275449496,-514.52205566,0.00041369,30]
[392241011,1761275449506,-504.48986827,0.00041369,30]
[392241012,1761275449516,-695.1,0.00041369,30]
[392241013,1761275449526,-511.51262708,0.00041369,12]
[392241014,1761275449535,-500.0,0.00041369,30]
[392241015,1761275449544,-500.0,0.00041369,30]
[392241016,1761275449554,-500.0,0.00041369,30]
[392241017,1761275449565,-500.0,0.00041369,30]
[392241018,1761275449575,-881.08,0.00041369,30]
[392241019,1761275449587,-500.0,0.00041369,30]
[392241020,1761275449596,-403.40703452,0.00041369,30]
[392241021,1761275449610,-96.59296548,0.00041369,30]
[392241022,1761275449620,-551.33,0.00041369,30]
[392241023,1761275449630,-514.51952603,0.00041369,30]
[392241024,1761275449644,-137.55750849,0.00041369,30]
[392241025,1761275449656,-362.44249151,0.00041369,30]
[392241026,1761275449666,-500.0,0.00041369,30]
[392241027,1761275449676,-500.0,0.00041369,30]
[392241028,1761275449686,-500.0,0.00041369,30]
[392241029,1761275449696,-500.0,0.00041369,30]
[392241030,1761275449705,-500.0,0.00041369,30]
[392241031,1761275449716,-500.0,0.00041369,30]
[392241032,1761275449727,-500.0,0.00041369,30]
[392241033,1761275449736,-500.0,0.00041369,30]
[392241034,1761275449747,-500.0,0.00041369,30]
[392241035,1761275449758,-500.0,0.00041369,30]
[392241036,1761275449767,-445.45838281,0.00041369,30]
[392241037,1761275449777,-500.0,0.00041369,30]
[392241038,1761275449787,-517.74837396,0.00041369,30]
[392241039,1761275449797,-583.2994666,0.00041369,30]
[392241040,1761275449807,-757.96,0.00041369,30]
[392241041,1761275449816,-500.0,0.00041369,30]
[392241042,1761275449826,-500.0,0.00041369,30]
[392241043,1761275449836,-352.716634,0.00041369,30]
[392241044,1761275449849,-147.283366,0.00041369,30]
[392241045,1761275449859,-669.59,0.00041369,30]
[392241046,1761275449868,-500.0,0.00041369,30]
[392241047,1761275449879,-500.0,0.00041369,30]
[392241048,1761275449889,-89.69018168,0.00041369,30]
[392241049,1761275449901,-410.30981832,0.00041369,30]
[392241050,1761275449911,-981.44,0.00041369,30]
[392241051,1761275449921,-500.0,0.00041369,30]
[392241052,1761275449931,-500.0,0.00041369,30]
[392241053,1761275449941,-500.0,0.00041369,30]
[392241054,1761275449951,-500.0,0.00041369,30]
[392241055,1761275449960,-500.0,0.00041369,30]
[392241056,1761275449970,-500.0,0.00041369,30]
[392241057,1761275449979,-536.43,0.00041369,30]
[392241058,1761275449989,-500.0,0.00041369,30]
[392241059,1761275449999,-919.33,0.00041369,30]
[392241060,1761275450009,-958.96,0.00041369,30]
[392241061,1761275450018,-500.0,0.00041369,30]
[392241062,1761275450028,-500.0,0.00041369,30]
[392241063,1761275450037,-685.02,0.00041369,30]
[392241064,1761275450047,-579.09,0.00041369,30]
[392241065,1761275450055,-773.86,0.00041369,30]
[392241066,1761275450065,-500.0,0.00041369,30]
[392241067,1761275450074,-500.0,0.00041369,30]
[392241068,1761275450084,-500.0,0.00041369,30]
[392241069,1761275450093,-500.0,0.00041369,30]
[392241070,1761275450102,-503.92047038,0.00041369,30]
[392241071,1761275450112,-500.0,0.00041369,30]
[392241072,1761275450121,-500.0,0.00041369,30]
[392241073,1761275450131,-500.0,0.00041369,30]
[392241074,1761275450141,-500.0,0.00041369,30]
[392241075,1761275450152,-500.0,0.00041369,30]
[392241076,1761275450163,-500.0,0.00041369,30]
[392241077,1761275450172,-500.0,0.00041369,30]
[392241078,1761275450182,-500.0,0.00041369,30]
[392241079,1761275450191,-1327.33,0.00041369,30]
[392241080,1761275450201,-500.0,0.00041369,30]
[392241081,1761275450212,-500.0,0.00041369,30]
[392241082,1761275450223,-500.0,0.00041369,30]
[392241083,1761275450233,-500.0,0.00041369,30]
[392241084,1761275450242,-500.0,0.00041369,30]
[392241085,1761275450254,-500.0,0.00041369,30]
[392241086,1761275450264,-519.45,0.00041369,30]
[392241087,1761275450275,-670.5,0.00041369,30]
[392241088,1761275450285,-500.0,0.00041369,30]
[392241089,1761275450295,-500.0,0.00041369,30]
[392241090,1761275450304,-500.0,0.00041369,30]
[392241091,1761275450314,-1109.76,0.00041369,30]
[392241092,1761275450323,-500.0,0.00041369,30]
[392241093,1761275450333,-500.0,0.00041369,30]
[392241094,1761275450342,-610.69,0.00041369,30]
[392241095,1761275450351,-730.77,0.00041369,30]
[392241096,1761275450360,-500.0,0.00041369,2]
[392241097,1761275450370,-500.0,0.00041369,30]
[392241098,1761275450380,-542.84,0.00041369,30]
[392241099,1761275450392,-500.0,0.00041369,30]
[392241100,1761275450405,-590.0,0.00041369,30]
[392241101,1761275450414,-500.0,0.00041369,6]
[392241102,1761275450425,-500.0,0.00041369,30]
[392241103,1761275450435,-500.0,0.00041369,30]
[392241104,1761275450444,-877.75,0.00041369,30]
[392241105,1761275450453,-698.96,0.00041369,30]
[392241106,1761275450463,-500.0,0.00041369,30]
[392241107,1761275450473,-500.0,0.00041369,30]
[392241108,1761275450482,-500.0,0.00041369,30]
[392241109,1761275450492,-500.0,0.00041369,30]
[392241110,1761275450501,-699.44,0.00041369,30]
[392241111,1761275450511,-500.0,0.00041369,30]
[392241112,1761275450521,-500.0,0.00041369,30]
[392241113,1761275450531,-519.0,0.00041369,30]
[392241114,1761275450541,-895.95,0.00041369,30]
[392241115,1761275450550,-500.0,0.00041369,30]
[392241116,1761275450560,-689.01,0.00041369,30]
[392241117,1761275450569,-500.0,0.00041369,30]
[392241118,1761275450578,-500.0,0.00041369,30]
[392241119,1761275450588,-708.29,0.00041369,30]
[392241120,1761275450597,-500.0,0.00041369,30]
[392241121,1761275450607,-500.0,0.00041369,30]
[392241122,1761275450616,-867.48,0.00041369,30]
[392241123,1761275450625,-500.0,0.00041369,30]
[392241124,1761275450635,-500.0,0.00041369,30]
[392241125,1761275450644,-500.0,0.00041369,30]
[392241126,1761275450654,-500.0,0.00041369,30]
[392241127,1761275450663,-500.0,0.00041369,30]
[392241128,1761275450673,-500.0,0.00041369,30]
[392241129,1761275450682,-500.0,0.00041369,30]
[392241130,1761275450691,-500.0,0.00041369,30]
[392241131,1761275450701,-500.0,0.00041369,30]
[392241132,1761275450710,-500.0,0.00041369,30]
[392241133,1761275450720,-500.0,0.00041369,30]
[392241134,1761275450730,-500.0,0.00041369,30]
[392241135,1761275450740,-500.0,0.00041369,30]
[392241136,1761275450750,-500.0,0.00041369,30]
[392241137,1761275450760,-500.0,0.00041369,30]
[392241138,1761275450770,-500.0,0.00041369,30]
[392241139,1761275450779,-500.0,0.00041369,30]
[392241140,1761275450789,-802.8,0.00041369,30]
[392241141,1761275450811,-500.0,0.00041369,30]
[392241142,1761275450821,-500.0,0.00041369,30]
[392241143,1761275450831,-500.0,0.00041369,30]
[392241144,1761275450841,-500.0,0.00041369,30]
[392241145,1761275450850,-500.0,0.00041369,30]
[392241146,1761275450860,-500.0,0.00041369,30]
[392241147,1761275450869,-192.25571095,0.00041369,30]
[392241148,1761275450879,-222.52016928,0.00041369,30]
[392241149,1761275450889,-500.0,0.00041369,30]
[392241150,1761275450898,-500.0,0.00041369,30]
[392241151,1761275450907,-500.0,0.00041369,30]
[392241152,1761275450918,-500.0,0.00041369,30]
[392241153,1761275450927,-500.0,0.00041369,30]
[392241154,1761275450937,-500.0,0.00041369,30]
[392241155,1761275450947,-522.98,0.00041369,30]
[392241156,1761275450956,-708.29,0.00041369,30]
[392241157,1761275450966,-500.0,0.00041369,30]
[392241158,1761275450976,-500.0,0.00041369,30]
[392241159,1761275450987,-500.0,0.00041369,30]
[392241160,1761275451103,-500.0,0.00041369,30]
[392241161,1761275451112,-722.15,0.00041369,30]
[392241162,1761275451122,-500.0,0.00041369,30]
[392241163,1761275451134,-500.0,0.00041369,30]
[392241164,1761275451143,-500.0,0.00041369,30]
[392241165,1761275451153,-500.0,0.00041369,30]
[392241166,1761275451162,-500.0,0.00041369,30]
[392241167,1761275451173,-500.0,0.00041369,30]
[392241168,1761275451183,-500.0,0.00041369,30]
[392241169,1761275451193,-719.68,0.00041369,30]
[392241170,1761275451204,-500.0,0.00041369,30]
[392241171,1761275451213,-500.0,0.00041369,30]
[392241172,1761275451223,-510.65,0.00041369,30]
[392241173,1761275451233,-500.0,0.00041369,30]
[392241174,1761275451244,-500.0,0.00041369,30]
[392241175,1761275451254,-782.39,0.00041369,30]
[392241176,1761275451263,-667.06,0.00041369,30]
[392241177,1761275451273,-500.0,0.00041369,30]
[392241178,1761275451283,-551.09,0.00041369,30]
[392241179,1761275451294,-500.0,0.00041369,30]
[392241180,1761275451305,-500.0,0.00041369,30]
[392241181,1761275451315,-343.5770351,0.00041369,30]
[392241182,1761275451325,-500.0,0.00041369,30]
[392241183,1761275451334,-589.6,0.00041369,30]
[392241184,1761275451344,-774.64,0.00041369,30]
[392241185,1761275451353,-683.83,0.00041369,30]
[392241186,1761275451362,-500.0,0.00041369,30]
[392241187,1761275451372,-500.0,0.00041369,30]
[392241188,1761275451381,-500.0,0.00041369,30]
[392241189,1761275451392,-500.0,0.00041369,30]
[392241190,1761275451402,-523.25367931,0.00041369,30]
[392241191,1761275451412,-500.0,0.00041369,30]
[392241192,1761275451422,-755.49,0.00041369,30]
[392241193,1761275451436,-524.44,0.00041369,30]
[392241194,1761275451446,-500.0,0.00041369,30]
[392241195,1761275451455,-500.0,0.00041369,30]
[392241196,1761275451464,-690.37,0.00041369,30]
[392241197,1761275451474,-500.0,0.00041369,30]
[392241198,1761275451485,-500.0,0.00041369,30]
[392241199,1761275451494,-500.0,0.00041369,30]
[392241200,1761275451504,-699.63,0.00041369,30]
[392241201,1761275451513,-677.28,0.00041369,30]
[392241202,1761275451523,-922.62,0.00041369,30]
[392241203,1761275451533,-500.0,0.00041369,30]
[392241204,1761275451542,-500.0,0.00041369,30]
[392241205,1761275451553,-735.41,0.00041369,30]
[392241206,1761275451563,-500.0,0.00041369,30]
[392241207,1761275451572,-500.0,0.00041369,30]
[392241208,1761275451582,-552.97,0.00041369,30]
[392241209,1761275451593,-500.0,0.00041369,30]
[392241210,1761275451602,-500.0,0.00041369,30]
[392241211,1761275451611,-500.0,0.00041369,30]
[392241212,1761275451620,-500.0,0.00041369,30]
[392241213,1761275451630,-610.96,0.00041369,30]
[392241214,1761275451639,-570.2,0.00041369,30]
[392241215,1761275451648,-268.58660034,0.00041369,30]
[392241216,1761275451658,-500.0,0.00041369,30]
[392241217,1761275451667,-500.0,0.00041369,30]
[392241218,1761275451678,-500.0,0.00041369,30]
[392241219,1761275451687,-500.0,0.00041369,30]
[392241220,1761275451697,-202.378228,0.00041369,30]
[392241221,1761275451706,-228.57776963,0.00041369,30]
[392241222,1761275451716,-500.0,0.00041369,30]
[392241223,1761275451724,-500.0,0.00041369,30]
[392241224,1761275451734,-500.0,0.00041369,30]
[392241225,1761275451743,-500.0,0.00041369,30]
[392241226,1761275451752,-500.0,0.00041369,30]
[392241227,1761275451762,-500.0,0.00041369,30]
[392241228,1761275451771,-500.0,0.00041369,30]
[392241229,1761275451780,-197.1636155,0.00041369,30]
[392241230,1761275451790,-500.0,0.00041369,30]
[392241231,1761275451800,-500.0,0.00041369,30]
[392241232,1761275451809,-1174.9482507,0.00041369,30]
[392241233,1761275451877,-229.2317493,0.00041369,30]
[392241234,1761275451886,-500.0,0.00041369,30]
[392241235,1761275451899,-605.39,0.00041369,30]
[392241236,1761275451909,-395.99138065,0.00041369,30]
[392241237,1761275451919,-541.99,0.00041369,30]
[392241238,1761275451928,-500.0,0.00041369,30]
[392241239,1761275451938,-500.0,0.00041369,30]
[392241240,1761275451948,-500.0,0.00041369,30]
[392241241,1761275451957,-500.0,0.00041369,30]
[392241242,1761275451968,-547.83,0.00041369,30]
[392241243,1761275451978,-500.0,0.00041369,30]
[392241244,1761275451990,-206.74271427,0.00041369,30]
[392241245,1761275452008,-293.25728573,0.00041369,30]
[392241246,1761275452017,-500.0,0.00041369,30]
[392241247,1761275452027,-518.41,0.00041369,30]
[392241248,1761275452037,-500.0,0.00041369,30]
[392241249,1761275452047,-500.0,0.00041369,30]
[392241250,1761275452058,-500.0,0.00041369,30]
[392241251,1761275452069,-500.0,0.00041369,30]
[392241252,1761275452079,-500.0,0.00041369,30]
[392241253,1761275452089,-500.0,0.00041369,30]
[392241254,1761275452100,-500.0,0.00041369,30]
[392241255,1761275452110,-109.02448163,0.00041369,30]
[392241256,1761275452124,-390.97551837,0.00041369,30]
[392241257,1761275452135,-500.0,0.00041369,30]
[392241258,1761275452146,-500.0,0.00041369,30]
[392241259,1761275452155,-500.0,0.00041369,30]
[392241260,1761275452166,-560.05,0.00041369,30]
[392241261,1761275452176,-500.0,0.00041369,30]
[392241262,1761275452186,-97.46366001,0.00041369,30]
[392241263,1761275452198,-423.81024343,0.00041369,30]
[392241264,1761275452209,-242.97609656,0.00041369,30]
[392241265,1761275452219,-500.0,0.00041369,30]
[392241266,1761275452228,-500.0,0.00041369,30]
[392241267,1761275452238,-500.0,0.00041369,30]
[392241268,1761275452248,-500.0,0.00041369,30]
[392241269,1761275452258,-500.0,0.00041369,30]
[392241270,1761275452269,-500.0,0.00041369,30]
[392241271,1761275452280,-555.87026363,0.00041369,30]
[392241272,1761275452291,-572.83,0.00041369,30]
[392241273,1761275452301,-109.37024306,0.00041369,30]
[392241274,1761275452678,-327.90484999,0.00041095,30]
[392241275,1761275452691,-172.09515001,0.00041095,30]
[392241276,1761275452702,-390.62975694,0.00041369,30]
[392241277,1761275452712,-500.0,0.00041369,30]
[392241278,1761275452721,-766.72,0.00041369,30]
[392241279,1761275452730,-500.0,0.00041369,30]
[392241280,1761275452739,-500.0,0.00041369,30]
[392241281,1761275452749,-500.0,0.00041369,30]
[392241282,1761275452758,-500.0,0.00041369,30]
[392241283,1761275452769,-500.0,0.00041369,30]
[392241284,1761275452779,-684.85,0.00041369,30]
[392241285,1761275452789,-664.31,0.00041369,30]
[392241286,1761275452808,-500.0,0.00041369,30]
[392241287,1761275452820,-500.0,0.00041369,30]
[392241288,1761275452831,-500.0,0.00041369,30]
[392241289,1761275452841,-500.0,0.00041369,30]
[392241290,1761275452853,-500.0,0.00041369,30]
[392241291,1761275452863,-500.0,0.00041369,30]
[392241292,1761275452873,-500.0,0.00041369,30]
[392241293,1761275452883,-500.0,0.00041369,30]
[392241294,1761275452894,-500.0,0.00041369,30]
[392241295,1761275452905,-500.0,0.00041369,30]
[392241296,1761275452915,-510.27,0.00041369,30]
[392241297,1761275452925,-776.8,0.00041369,30]
[392241298,1761275452935,-729.13,0.00041369,30]
[392241299,1761275452946,-1044.94,0.00041369,30]
[392241300,1761275452955,-625.34254664,0.00041369,30]
[392241301,1761275452965,-500.0,0.00041369,30]
[392241302,1761275452974,-500.0,0.00041369,30]
[392241303,1761275452983,-531.55,0.00041369,30]
[392241304,1761275452992,-595.6,0.00041369,30]
[392241305,1761275453001,-613.49,0.00041369,30]
[392241306,1761275453010,-664.06,0.00041369,30]
[392241307,1761275453019,-514.0820987,0.00041369,30]
[392241308,1761275453028,-500.0,0.00041369,30]
[392241309,1761275453038,-1149.58,0.00041369,30]
[392241310,1761275453047,-500.0,0.00041369,30]
[392241311,1761275453056,-500.0,0.00041369,30]
[392241312,1761275453066,-500.0,0.00041369,30]
[392241313,1761275453075,-662.15,0.00041369,30]
[392241314,1761275453085,-500.0,0.00041369,30]
[392241315,1761275453095,-500.0,0.00041369,30]
[392241316,1761275453104,-500.0,0.00041369,30]
[392241317,1761275453114,-909.08,0.00041369,30]
[392241318,1761275453123,-500.0,0.00041369,30]
[392241319,1761275453133,-679.02,0.00041369,30]
[392241320,1761275453142,-778.94,0.00041369,30]
[392241321,1761275453151,-500.0,0.00041369,30]
[392241322,1761275453160,-500.0,0.00041369,30]
[392241323,1761275453170,-681.28,0.00041369,30]
[392241324,1761275453179,-569.59,0.00041369,30]
[392241325,1761275453189,-500.0,0.00041369,30]
[392241326,1761275453199,-500.0,0.00041369,30]
[392241327,1761275453209,-500.0,0.00041369,30]
[392241328,1761275453219,-500.0,0.00041369,30]
[392241329,1761275453228,-876.6,0.00041369,30]
[392241330,1761275453237,-500.0,0.00041369,30]
[392241331,1761275453247,-849.5,0.00041369,30]